fUSD/lending_fUSD_20251002
["ID","MTS","AMOUNT","RATE_DAILY","PERIOD"]
[388847737,1759422644753,-509.60391206,0.00021696,2]
[388847738,1759422644765,-381.0,0.00021698,2]
[388847739,1759422644776,-614.84082072,0.00021699,2]
[388847740,1759422644791,-1900.0,0.000217,7]
[388847741,1759422644802,-2479.07600515,0.00021772,2]
[388847742,1759422644812,-1000.0,0.00021772,2]
[388847743,1759422644823,-2500.0,0.00021772,2]
[388847744,1759422644835,-614.84082072,0.00021797,2]
[388847745,1759422644847,-2300.0,0.000218,7]
[388847746,1759422644862,-478.95254855,0.000218,2]
[388847747,1759422644874,-165.44247905,0.000218,2]
[388847748,1759422644886,-2479.07600506,0.00021807,2]
[388847749,1759422644898,-151.0,0.0002181,2]
[388847750,1759422644909,-256.8,0.00021813,2]
[388847751,1759422644920,-1186.5753389,0.00021816,5]
[388847752,1759422644931,-69335.6244,0.00021817,2]
[388847753,1759422644944,-5000.0,0.00021817,2]
[388847754,1759422644955,-634.985037,0.00021817,2]
[388847755,1759422644966,-175.83567734,0.00021817,2]
[388847756,1759422644977,-168.2119037,0.00021817,2]
[388847757,1759422644988,-150.0,0.00021818,2]
[388847758,1759422644999,-150.0,0.00021818,2]
[388847759,1759422645011,-500.0,0.00021818,2]
[388847760,1759422645022,-150.0,0.00021818,2]
[388847761,1759422645034,-150.0,0.00021818,2]
[388847762,1759422645045,-260.30035613,0.00021818,2]
[388847763,1759422645057,-150.0,0.00021818,2]
[388847764,1759422645068,-200.0,0.00021818,2]
[388847765,1759422645079,-500.0,0.00021818,2]
[388847766,1759422645089,-150.0,0.00021818,2]
[388847767,1759422645099,-500.0,0.00021818,2]
[388847768,1759422645110,-500.0,0.00021818,2]
[388847769,1759422645120,-150.0,0.00021818,2]
[388847770,1759422645131,-1082.0,0.00021818,2]
[388847771,1759422645142,-500.0,0.00021818,2]
[388847772,1759422645152,-150.0,0.00021818,2]
[388847773,1759422645163,-641.0,0.00021818,2]
[388847774,1759422645175,-2479.07600506,0.00021843,2]
[388847775,1759422645186,-2458.71451465,0.00021856,2]
[388847776,1759422645197,-695.16912924,0.00021856,2]
[388847777,1759422645208,-63620.8428836,0.00021871,2]
[388847778,1759422645219,-18393.122175,0.00021872,2]
[388847779,1759422645231,-200.0,0.00021872,2]
[388847780,1759422645242,-42267.3052982,0.00021872,2]
[388847781,1759422645257,-151.0,0.00021872,2]
[388847782,1759422646050,-151.0,0.00021872,2]
[388847783,1759422646096,-246.83274,0.00021872,2]
[388847785,1759422646107,-5000.0,0.00021874,2]
[388847786,1759422646117,-42023.48265744,0.00021876,2]
[388847788,1759422646128,-2479.07600506,0.00021878,2]
[388847790,1759422646138,-894.02207253,0.00021878,2]
[388847792,1759422646148,-894.02207253,0.00021878,2]
[388847794,1759422646158,-894.02207253,0.00021878,2]
[388847796,1759422646168,-1000.0,0.00021888,2]
[388847798,1759422646178,-299593.81320628,0.00021888,4]
[388847802,1759422646208,-595.399,0.00021888,4]
[388847805,1759422646220,-11450.99999772,0.00021888,4]
[388847807,1759422646263,-120149.3799486,0.00021888,4]
[388847809,1759422646275,-29335.61532161,0.00021888,4]
[388847813,1759422646314,-31082.84202831,0.00021888,4]
[388847815,1759422646326,-32796.34556527,0.00021888,4]
[388847816,1759422649784,-1282.41039104,0.00021567,2]
[388847817,1759422649797,-1282.41039104,0.00021608,2]
[388847818,1759422649807,-1282.41039104,0.00021647,2]
[388847819,1759422649817,-9353911.29814869,0.00021888,4]
[388847820,1759422649830,-31405.268958,0.00021888,4]
[388847821,1759422649842,-2345.89900001,0.00021888,4]
[388847822,1759422649854,-297.0134,0.00021888,4]
[388847823,1759422649867,-3009.54956037,0.00021888,4]
[388847824,1759422649879,-30000.0,0.00021888,4]
[388847825,1759422649890,-740146.44406898,0.00021888,4]
[388847826,1759422652533,-666.0,0.00021544,2]
[388847827,1759422652584,-616.41039104,0.00021544,2]
[388847828,1759422652594,-432.60481996,0.00021888,4]
[388847829,1759422652606,-735816.60632705,0.00021888,4]
[388847830,1759422652618,-827.8,0.00021888,4]
[388847831,1759422652643,-649894.90903722,0.00021888,4]
[388847832,1759422652655,-669834.17332871,0.00021888,4]
[388847833,1759422652667,-6772.696552,0.00021888,4]
[388847834,1759422652679,-380653.38331636,0.00021888,4]
[388847835,1759422652691,-1201.1501,0.00021888,4]
[388847839,1759422708658,-10000000.0,0.00032854,30]
[388847840,1759422716594,-2306120.35154487,0.00032854,30]
[388847841,1759422716621,-166041.38221229,0.00032854,30]
[388847842,1759422716649,-59785.45544201,0.00032854,30]
[388847843,1759422716677,-14696.58752524,0.00032854,30]
[388847844,1759422716705,-50000.0,0.00032854,30]
[388847845,1759422716734,-50064.35993855,0.00032854,30]
[388847846,1759422716762,-3836.80787735,0.00032854,120]
[388847847,1759422716789,-150.0,0.00032854,30]
[388847848,1759422716819,-4400.37239442,0.00032854,120]
[388847849,1759422716847,-26226.02494199,0.00032854,120]
[388847850,1759422716876,-4859.5383353,0.00032854,120]
[388847851,1759422716903,-3932.23408859,0.00032854,120]
[388847852,1759422716930,-9978.2,0.00032854,120]
[388847853,1759422716956,-62126.53,0.00032854,30]
[388847854,1759422716983,-25463.79291584,0.00032854,120]
[388847855,1759422717011,-23641.68207912,0.00032854,120]
[388847856,1759422717038,-1000.0,0.00032854,120]
[388847857,1759422717065,-1202.0,0.00032854,120]
[388847858,1759422717093,-500000.0,0.00032854,30]
[388847859,1759422717121,-1028244.0,0.00032854,60]
[388847860,1759422717149,-5000.0,0.00032854,120]
[388847861,1759422717177,-5000.0,0.00032854,36]
[388847862,1759422717203,-195.90814853,0.00032854,30]
[388847863,1759422717229,-5069.0054814,0.00032854,120]
[388847864,1759422717258,-2403.0,0.00032854,120]
[388847865,1759422717287,-1202.0,0.00032854,120]
[388847866,1759422717315,-3000.0,0.00032854,120]
[388847867,1759422717345,-1761.93,0.00032854,120]
[388847868,1759422717375,-1761.93,0.00032854,120]
[388847869,1759422717405,-1761.93,0.00032854,120]
[388847870,1759422717435,-1761.93,0.00032854,120]
[388847871,1759422717464,-1761.93,0.00032854,120]
[388847872,1759422717494,-1761.93,0.00032854,120]
[388847873,1759422717523,-1761.93,0.00032854,120]
[388847874,1759422717553,-1761.93,0.00032854,120]
[388847875,1759422717581,-1761.93,0.00032854,120]
[388847876,1759422717610,-1761.93,0.00032854,120]
[388847877,1759422717639,-1761.93,0.00032854,120]
[388847878,1759422717668,-1761.93,0.00032854,120]
[388847879,1759422717696,-1761.93,0.00032854,120]
[388847880,1759422717724,-1761.93,0.00032854,120]
[388847881,1759422717752,-288.18956394,0.00032854,120]
[388847882,1759422717781,-1761.93,0.00032854,120]
[388847883,1759422717812,-1761.93,0.00032854,120]
[388847884,1759422717841,-1761.93,0.00032854,120]
[388847885,1759422717871,-1761.93,0.00032854,120]
[388847886,1759422717901,-1761.93,0.00032854,120]
[388847887,1759422717931,-1761.93,0.00032854,120]
[388847888,1759422717961,-1761.93,0.00032854,120]
[388847889,1759422717989,-1761.93,0.00032854,120]
[388847890,1759422718018,-1761.93,0.00032854,120]
[388847891,1759422718045,-1762.04087317,0.00032854,120]
[388847892,1759422718071,-434.52983514,0.00032854,60]
[388847893,1759422718098,-1000.0,0.00032854,30]
[388847894,1759422718125,-458.60074633,0.00032854,120]
[388847895,1759422718151,-999.999999,0.00032854,120]
[388847896,1759422718178,-154.73466652,0.00032854,60]
[388847897,1759422718206,-5590740.2813904,0.00032854,30]
[388847898,1759422724297,-10000004.0,0.00032854,30]
[388847899,1759422738658,-10000004.0,0.00032178,30]
[388847900,1759422745709,-10000006.0,0.00032178,30]
[388847904,1759422944610,-209.1367376,0.000167,2]
[388847905,1759422946581,-210.90173113,0.000167,2]
[388847906,1759422949657,-445.689831,0.000167,2]
[388847907,1759422971524,51553.27170027,0.000165,2]
[388847908,1759422987871,4492.0,0.000165,2]
[388847909,1759422996972,158.75,0.00010185,2]
[388847910,1759422997082,158.75,0.00011111,2]
[388847911,1759422997206,158.75,0.00012037,2]
[388847912,1759422997528,158.75,0.00012962,2]
[388847913,1759422997703,158.75,0.00013888,2]
[388847915,1759423004216,158.75,0.00014814,2]
[388847917,1759423004460,158.75,0.0001574,2]
[388847919,1759423053666,26099.45178276,0.000166,2]
[388847920,1759423053698,33900.54821724,0.000166,2]
[388847922,1759423370754,154.08098775,0.00016566,2]
[388847932,1759423831780,-922.60642403,0.00016665,2]
[388847933,1759423831808,-256.814031,0.00016665,2]
[388847934,1759423831820,-696.07954497,0.00016665,2]
[388847935,1759423831829,-158.75,0.00016666,2]
[388847936,1759423831839,-9.80416957,0.000167,2]
[388847937,1759423831870,-388.61283043,0.000167,2]
[388847938,1759423831881,-404.35298065,0.00016814,2]
[388847939,1759423831915,-600.0,0.00016814,2]
[388847940,1759423831946,-116.14388935,0.00016814,2]
[388847941,1759423831956,-158.75,0.00017592,2]
[388847942,1759423831966,-11.2340407,0.00018331,2]
[388847966,1759423837552,-335.74040307,0.00018331,2]
[388847967,1759423837657,-853.02555623,0.00018331,2]
[388847968,1759423837668,-250.0,0.00018332,2]
[388847969,1759423837679,-250.56161002,0.00018513,2]
[388847970,1759423837689,-158.75,0.00018518,2]
[388847971,1759423837699,-370.49393606,0.00018546,2]
[388847972,1759423837710,-158.75,0.00019444,2]
[388847973,1759423837720,-150.0,0.00019701,2]
[388847974,1759423837731,-150.0,0.00019701,2]
[388847975,1759423837741,-150.0,0.00019701,2]
[388847976,1759423837757,-150.0,0.00019701,2]
[388847977,1759423837767,-150.0,0.00019701,2]
[388847978,1759423837777,-150.0,0.00019701,2]
[388847979,1759423837788,-150.0,0.00019701,2]
[388847980,1759423837799,-150.0,0.00019701,2]
[388847981,1759423837809,-150.0,0.00019701,2]
[388847982,1759423837819,-150.0,0.00019701,2]
[388847983,1759423837844,-150.0,0.00019701,2]
[388847984,1759423837859,-1237.0,0.00020092,2]
[388847985,1759423837871,-500.0,0.000201,2]
[388847986,1759423837882,-150.0,0.00020164,2]
[388847987,1759423837893,-150.0,0.00020274,2]
[388847988,1759423837904,-150.0,0.00020274,2]
[388847989,1759423837914,-197.07784816,0.00020288,2]
[388847990,1759423837925,-283.68,0.0002029,2]
[388847991,1759423837936,-158.75,0.0002037,2]
[388847992,1759423837947,-238.88224019,0.00020413,2]
[388847993,1759423837957,-157.0,0.00020524,2]
[388847994,1759423837968,-151.0,0.00020525,2]
[388847995,1759423837979,-151.0,0.00020525,2]
[388847996,1759423837989,-151.0,0.00020525,2]
[388847997,1759423838002,-151.0,0.00020525,2]
[388847998,1759423838013,-151.0,0.00020525,2]
[388847999,1759423838023,-151.0,0.00020525,2]
[388848000,1759423838034,-500.0,0.00020525,2]
[388848001,1759423838045,-151.0,0.00020525,2]
[388848002,1759423838055,-151.0,0.00020525,2]
[388848003,1759423838066,-500.0,0.00020525,2]
[388848004,1759423838078,-151.0,0.00020525,2]
[388848005,1759423838088,-500.0,0.00020525,2]
[388848006,1759423838098,-151.0,0.00020525,2]
[388848007,1759423838109,-151.0,0.00020525,2]
[388848008,1759423838123,-618.45682338,0.00020525,2]
[388848009,1759423838134,-151.0,0.00020525,2]
[388848010,1759423838145,-151.0,0.00020525,2]
[388848011,1759423838155,-151.0,0.00020525,2]
[388848012,1759423838165,-151.0,0.00020525,2]
[388848013,1759423838176,-151.0,0.00020525,2]
[388848014,1759423838187,-151.0,0.00020525,2]
[388848015,1759423838199,-151.0,0.00020525,2]
[388848016,1759423838210,-200.0,0.00020525,2]
[388848017,1759423838221,-151.0,0.00020525,2]
[388848018,1759423838231,-151.0,0.00020525,2]
[388848019,1759423838241,-151.0,0.00020525,2]
[388848020,1759423838253,-151.0,0.00020525,2]
[388848021,1759423838263,-151.0,0.00020525,2]
[388848022,1759423838274,-200.0,0.00020525,2]
[388848023,1759423838285,-151.0,0.00020525,2]
[388848024,1759423838296,-151.0,0.00020525,2]
[388848025,1759423838306,-151.0,0.00020525,2]
[388848026,1759423838316,-151.0,0.00020525,2]
[388848027,1759423838327,-151.0,0.00020525,2]
[388848028,1759423838338,-151.0,0.00020525,2]
[388848029,1759423838349,-151.0,0.00020525,2]
[388848030,1759423838360,-151.0,0.00020525,2]
[388848031,1759423838371,-151.0,0.00020525,2]
[388848032,1759423838382,-151.0,0.00020525,2]
[388848033,1759423838400,-151.0,0.00020525,2]
[388848034,1759423838411,-151.0,0.00020525,2]
[388848035,1759423838422,-151.0,0.00020525,2]
[388848036,1759423838432,-151.0,0.00020525,2]
[388848037,1759423838443,-151.0,0.00020525,2]
[388848038,1759423838455,-151.0,0.00020525,2]
[388848039,1759423838466,-151.0,0.00020525,2]
[388848040,1759423838476,-500.0,0.00020525,2]
[388848041,1759423838487,-315.60292304,0.00020525,2]
[388848042,1759423838499,-200.0,0.00020525,2]
[388848043,1759423838510,-151.0,0.00020525,2]
[388848044,1759423838521,-151.0,0.00020525,2]
[388848045,1759423838532,-151.0,0.00020525,2]
[388848046,1759423838542,-151.0,0.00020525,2]
[388848047,1759423838553,-151.0,0.00020525,2]
[388848048,1759423838563,-151.0,0.00020525,2]
[388848049,1759423838574,-151.0,0.00020525,2]
[388848050,1759423838585,-151.0,0.00020525,2]
[388848051,1759423838595,-151.0,0.00020525,2]
[388848052,1759423838606,-151.0,0.00020525,2]
[388848053,1759423838616,-151.0,0.00020525,2]
[388848054,1759423838628,-430.72,0.00020533,2]
[388848055,1759423838639,-3682.61,0.00020537,2]
[388848056,1759423838650,-280.68663223,0.00020537,2]
[388848057,1759423838661,-500.0,0.000206,2]
[388848058,1759423838672,-322.49102426,0.00020662,2]
[388848059,1759423838683,-151.0,0.00020761,2]
[388848060,1759423838694,-1808.83961076,0.00020761,2]
[388848061,1759423838704,-578.20924309,0.00020761,2]
[388848062,1759423838714,-322.6107,0.00020761,2]
[388848063,1759423838724,-500.0,0.00020761,2]
[388848064,1759423838734,-500.0,0.00020761,2]
[388848065,1759423838744,-500.0,0.00020761,2]
[388848066,1759423838754,-500.0,0.00020761,2]
[388848067,1759423838765,-500.0,0.00020761,2]
[388848068,1759423838776,-500.0,0.00020761,2]
[388848069,1759423838788,-248.71531821,0.00020761,2]
[388848070,1759423838798,-500.0,0.00020761,2]
[388848071,1759423838809,-500.0,0.00020761,2]
[388848072,1759423838820,-8565.75555911,0.00020761,2]
[388848073,1759423838831,-364.29541629,0.00020786,2]
[388848074,1759423838841,-150.0,0.00020796,4]
[388848075,1759423838852,-8882.6885148,0.00020816,2]
[388848076,1759423838863,-9211.34798985,0.00020871,2]
[388848077,1759423838874,-1000.0,0.00020891,2]
[388848078,1759423838884,-18982.21,0.000209,2]
[388848079,1759423838895,-18982.21,0.000209,2]
[388848080,1759423838906,-18982.21,0.000209,2]
[388848081,1759423838917,-406.09980833,0.00020911,2]
[388848082,1759423838929,-483.18,0.00020912,2]
[388848083,1759423838939,-224.32482825,0.00020925,2]
[388848084,1759423838950,-629.24101057,0.00020925,2]
[388848085,1759423838962,-293.16488445,0.00020925,2]
[388848086,1759423838973,-500.0,0.00020925,2]
[388848087,1759423838983,-500.0,0.00020925,2]
[388848088,1759423839000,-288.25774875,0.00020925,2]
[388848089,1759423839011,-9552.16786547,0.00020926,2]
[388848090,1759423839021,-9905.5980765,0.00020981,2]
[388848091,1759423839033,-18982.21,0.00021,2]
[388848092,1759423839044,-447.90420036,0.00021035,2]
[388848093,1759423839054,-10272.10520533,0.00021036,2]
[388848094,1759423839065,-159.5,0.00021078,2]
[388848095,1759423839075,-10652.17309792,0.00021091,2]
[388848096,1759423839086,-150.0,0.000211,2]
[388848097,1759423839097,-500.0,0.000211,2]
[388848098,1759423839108,-11046.30350255,0.00021146,2]
[388848099,1759423839122,-489.70859239,0.0002116,2]
[388848100,1759423839132,-11455.01673214,0.00021201,2]
[388848101,1759423839143,-153.09758881,0.00021233,2]
[388848102,1759423839155,-11878.85235123,0.00021256,2]
[388848103,1759423839166,-531.51298443,0.00021284,2]
[388848104,1759423839177,-500.0,0.000213,7]
[388848105,1759423839189,-5158.69721013,0.00021311,2]
[388848106,1759423839200,-153.09758881,0.00021342,2]
[388848107,1759423839210,-1196.84,0.0002137,2]
[388848108,1759423839221,-1000.0,0.000214,7]
[388848109,1759423839232,-573.31737646,0.00021409,2]
[388848110,1759423839242,-153.09758881,0.00021425,2]
[388848111,1759423839254,-40000.00000099,0.000215,2]
[388848112,1759423839264,-18982.21,0.000215,2]
[388848113,1759423839275,-1500.0,0.000215,7]
[388848114,1759423839286,-162.77702264,0.00021529,2]
[388848115,1759423839295,-3561.15305456,0.0002153,2]
[388848116,1759423839306,-567.26082616,0.00021531,2]
[388848117,1759423839318,-11819.62314202,0.00021533,2]
[388848118,1759423839329,-615.1217685,0.00021533,2]
[388848119,1759423839340,-8114.86135902,0.00021533,2]
[388848120,1759423839351,-153.09758881,0.00021534,2]
[388848121,1759423839362,-7021.86576819,0.00021538,2]
[388848122,1759423839373,-13363.8949556,0.00021543,2]
[388848124,1759423839383,-1873.58196396,0.00021543,2]
[388848126,1759423839394,-14949.66533439,0.00021543,2]
[388848128,1759423839404,-8114.86135902,0.00021544,2]
[388848129,1759423839419,-3561.15305456,0.00021548,2]
[388848130,1759423839430,-3561.15305456,0.00021548,2]
[388848132,1759423839441,-22772.89961068,0.00021549,2]
[388848133,1759423839452,-12850.84041842,0.00021551,2]
[388848134,1759423839463,-88281.61713683,0.00021552,2]
[388848135,1759423839474,-88281.61713683,0.00021553,2]
[388848136,1759423839484,-162.77702264,0.00021555,2]
[388848137,1759423839497,-1873.58196396,0.00021557,2]
[388848138,1759423839507,-3561.15305456,0.00021557,2]
[388848139,1759423839518,-430.72,0.00021559,2]
[388848140,1759423839529,-8114.86135902,0.0002156,2]
[388848141,1759423839540,-13363.8949556,0.00021565,2]
[388848142,1759423839550,-7021.86576819,0.00021566,2]
[388848143,1759423839560,-22772.89961068,0.00021566,2]
[388848144,1759423839571,-14949.66533439,0.00021566,2]
[388848145,1759423839582,-13363.8949556,0.00021578,2]
[388848146,1759423839593,-88281.61713683,0.00021581,2]
[388848147,1759423839604,-567.26082616,0.00021583,2]
[388848148,1759423839614,-14949.66533439,0.00021585,2]
[388848149,1759423839624,-8114.86135902,0.00021593,2]
[388848150,1759423839635,-567.26082616,0.00021593,2]
[388848151,1759423839646,-7021.86576819,0.00021595,2]
[388848152,1759423839655,-1282.41039104,0.00021596,2]
[388848153,1759423839667,-11819.62314202,0.00021597,2]
[388848154,1759423839678,-2000.0,0.000216,7]
[388848155,1759423839688,-8115.82623246,0.000216,2]
[388848156,1759423839699,-500.0,0.000216,2]
[388848157,1759423839711,-1873.58196396,0.00021601,2]
[388848158,1759423839721,-88281.61713683,0.00021608,2]
[388848159,1759423839732,-567.26082616,0.00021609,2]
[388848160,1759423839742,-12850.84041842,0.00021614,2]
[388848161,1759423839753,-7021.86576819,0.00021614,2]
[388848162,1759423839763,-153.09758881,0.00021616,2]
[388848163,1759423839773,-12850.84041842,0.0002162,2]
[388848164,1759423839784,-22772.89961068,0.00021625,2]
[388848165,1759423839794,-684.33771012,0.00021626,2]
[388848166,1759423839807,-3561.15305456,0.00021628,2]
[388848167,1759423839817,-13363.8949556,0.00021628,2]
[388848169,1759423839828,-11819.62314202,0.00021629,2]
[388848171,1759423839839,-13363.8949556,0.0002163,2]
[388848173,1759423839849,-162.77702264,0.00021635,2]
[388848175,1759423839859,-22772.89961068,0.00021641,2]
[388848177,1759423839869,-11819.62314202,0.00021641,2]
[388848179,1759423839880,-1873.58196396,0.00021648,2]
[388848181,1759423839891,-567.26082616,0.00021649,2]
[388848183,1759423839902,-88281.61713683,0.00021653,2]
[388848185,1759423839912,-656.92616053,0.00021658,2]
[388848188,1759423839923,-12850.84041842,0.00021661,2]
[388848189,1759423839933,-8115.82623237,0.00021667,2]
[388848191,1759423839945,-8114.86135902,0.00021667,2]
[388848194,1759423839957,-7021.86576819,0.00021668,2]
[388848196,1759423839967,-12074.53,0.00021671,8]
[388848198,1759423839978,-4044.88,0.00021671,8]
[388848200,1759423839989,-2759.543,0.00021676,2]
[388848202,1759423839999,-1873.58196396,0.00021678,2]
[388848204,1759423840010,-12850.84041842,0.00021681,2]
[388848206,1759423840020,-14949.66533439,0.00021684,2]
[388848208,1759423840033,-14949.66533439,0.00021684,2]
[388848210,1759423840043,-162.77702264,0.00021688,2]
[388848212,1759423840053,-8889.9402145,0.00021689,2]
[388848214,1759423840064,-162.77702264,0.00021694,2]
[388848216,1759423840074,-22772.89961068,0.00021695,2]
[388848218,1759423840084,-11819.62314202,0.00021699,2]
[388848220,1759423840095,-2500.0,0.000217,7]
[388848222,1759423840105,-492.1666,0.00021717,2]
[388848224,1759423840121,-2500.0,0.00021717,2]
[388848226,1759423840131,-1001.88441788,0.00021717,2]
[388848229,1759423840141,-153.09758881,0.00021726,2]
[388848231,1759423840151,-8115.82623237,0.00021733,2]
[388848232,1759423840161,-6134.15865879,0.00021775,2]
[388848234,1759423840171,-698.73055256,0.00021782,2]
[388848237,1759423840181,-500.0,0.000218,7]
[388848239,1759423840193,-8115.82623237,0.000218,2]
[388848241,1759423840203,-153.09758881,0.00021808,2]
[388848243,1759423840214,-5000.0,0.00021816,2]
[388848245,1759423840224,-145481.8758,0.00021817,2]
[388848247,1759423840234,-1000.0,0.00021817,2]
[388848249,1759423840245,-160.17617172,0.00021817,2]
[388848251,1759423840255,-544.2728889,0.00021817,2]
[388848253,1759423840266,-554.3741617,0.00021817,2]
[388848255,1759423840276,-168.21190366,0.00021817,2]
[388848257,1759423840287,-250.0,0.00021818,2]
[388848259,1759423840297,-150.93983604,0.00021818,2]
[388848261,1759423840308,-500.0,0.00021818,2]
[388848263,1759423840318,-150.0,0.00021818,2]
[388848265,1759423840328,-150.0,0.00021818,2]
[388848267,1759423840338,-150.0,0.00021818,2]
[388848269,1759423840348,-1037.0,0.00021818,2]
[388848271,1759423840358,-605.0,0.00021818,2]
[388848273,1759423840368,-150.0,0.00021818,2]
[388848275,1759423840378,-614.0,0.00021818,2]
[388848277,1759423840388,-150.0,0.00021818,2]
[388848279,1759423840398,-150.0,0.00021818,2]
[388848281,1759423840408,-150.0,0.00021818,2]
[388848284,1759423840419,-500.0,0.00021818,2]
[388848285,1759423840428,-150.0,0.00021818,2]
[388848287,1759423840439,-150.0,0.00021818,2]
[388848289,1759423840449,-500.0,0.00021818,2]
[388848291,1759423840459,-6134.15865877,0.00021829,2]
[388848293,1759423840469,-1001.88441783,0.0002185,2]
[388848295,1759423840479,-151.0,0.00021863,2]
[388848298,1759423840492,-8115.82623237,0.00021867,2]
[388848300,1759423840503,-168.0,0.00021875,2]
[388848302,1759423840513,-6134.15865877,0.00021884,2]
[388848304,1759423840523,-1207.65119155,0.00021887,5]
[388848306,1759423840533,-1207.65119155,0.00021887,5]
[388848308,1759423840542,-1082.15,0.00021887,2]
[388848310,1759423840552,-231.49813,0.00021888,2]
[388848312,1759423840562,-1310.47,0.00021888,2]
[388848314,1759423840571,-11258260.760884,0.0002189,3]
[388848316,1759423840581,-153.09758881,0.0002189,2]
[388848323,1759423841040,-248.56326903,0.0002189,4]
[388848324,1759423841050,-150.0,0.0002189,4]
[388848325,1759423841061,-150.0,0.0002189,4]
[388848326,1759423841072,-150.0,0.0002189,4]
[388848327,1759423841082,-150.0,0.0002189,4]
[388848328,1759423841092,-150.0,0.0002189,4]
[388848329,1759423841102,-500.0,0.000219,7]
[388848330,1759423841114,-2038.95496304,0.000219,5]
[388848331,1759423841126,-1000.0,0.000219,2]
[388848332,1759423841136,-40553.57673847,0.000219,2]
[388848333,1759423841146,-109339.05,0.000219,2]
[388848334,1759423841157,-1000.0,0.000219,2]
[388848335,1759423841167,-461.52,0.000219,7]
[388848336,1759423841176,-621.0,0.00021902,2]
[388848337,1759423841187,-151.0,0.00021902,2]
[388848338,1759423841197,-150.0,0.00021902,2]
[388848339,1759423841206,-1189.098,0.00021902,2]
[388848340,1759423841216,-215.08852706,0.00021907,2]
[388848341,1759423841226,-740.5349446,0.00021907,2]
[388848342,1759423841235,-999.96,0.00021916,2]
[388848343,1759423841245,-336.75592871,0.00021916,7]
[388848344,1759423841256,-1000.0,0.00021916,2]
[388848345,1759423841266,-1000.0,0.00021916,2]
[388848346,1759423841276,-150.0,0.00021916,2]
[388848347,1759423841285,-1000.0,0.00021916,2]
[388848348,1759423841295,-1000.0,0.00021916,2]
[388848349,1759423841305,-1000.0,0.00021916,2]
[388848350,1759423841314,-1000.0,0.00021916,2]
[388848351,1759423841324,-1000.0,0.00021916,2]
[388848352,1759423841333,-1000.0,0.00021916,2]
[388848353,1759423841343,-1000.0,0.00021916,2]
[388848354,1759423841353,-830.27,0.00021916,2]
[388848355,1759423841362,-282.66451898,0.00021916,2]
[388848356,1759423841372,-1250.0,0.00021916,2]
[388848357,1759423841382,-1250.0,0.00021916,2]
[388848358,1759423841391,-1250.0,0.00021916,2]
[388848359,1759423841400,-1250.0,0.00021916,2]
[388848360,1759423841410,-1250.0,0.00021916,2]
[388848361,1759423841419,-1250.0,0.00021916,2]
[388848362,1759423841430,-1250.0,0.00021916,2]
[388848363,1759423841440,-1250.0,0.00021916,2]
[388848364,1759423841449,-1250.0,0.00021916,2]
[388848365,1759423841459,-1250.0,0.00021916,2]
[388848366,1759423841468,-1250.0,0.00021916,2]
[388848367,1759423841478,-1250.0,0.00021916,2]
[388848368,1759423841487,-1250.0,0.00021916,2]
[388848369,1759423841496,-1250.0,0.00021916,2]
[388848370,1759423841506,-1250.0,0.00021916,2]
[388848371,1759423841515,-1250.0,0.00021916,2]
[388848372,1759423841525,-1250.0,0.00021916,2]
[388848373,1759423841535,-1250.0,0.00021916,2]
[388848374,1759423841545,-1250.0,0.00021916,2]
[388848375,1759423841554,-1250.0,0.00021916,2]
[388848376,1759423841564,-1250.0,0.00021916,2]
[388848377,1759423841574,-1250.0,0.00021916,2]
[388848378,1759423841583,-1250.0,0.00021916,2]
[388848379,1759423841593,-1250.0,0.00021916,2]
[388848380,1759423841603,-500.0,0.00021917,2]
[388848381,1759423841613,-500.0,0.00021917,2]
[388848382,1759423841623,-476.49471376,0.00021917,2]